[Event "NOR-chT Eliteserien 2018-19"]
[Site "Norway"]
[Date "2018.11.04"]
[Round "3"]
[White "Hammer, Jon Ludvig"]
[Black "Notkevich, Benjamin Arvola"]
[Result "1-0"]
[ECO "D41"]
[WhiteElo "2659"]
[BlackElo "2506"]
[Annotator "broadcasts RC"]
[PlyCount "35"]
[EventDate "2018.11.02"]
[EventType "team-tourn"]
[EventCountry "NOR"]
[TimeControl "40/5400+30:1800+30"]

1. d4 {[%emt 0:00:00]} Nf6 {[%emt 0:00:00]} 2. c4 {[%emt 0:00:00]} e6 {[%emt 0:00:00]} 3. Nf3 {[%emt 0:01:14]} d5 {[%emt 0:00:00]} 4. Nc3 {[%emt 0:00:10]} c5 {[%emt 0:00:04]} 5. cxd5 {[%emt 0:00:17]} Nxd5 {[%emt 0:00:04]} 6. e4 {[%emt 0:01:07]} Nxc3 {[%emt 0:00:06]} 7. bxc3 {[%emt 0:00:06]} cxd4 {[%emt 0:00:04]} 8. cxd4 {[%emt 0:00:08]} Bb4+ {[%emt 0:00:05]} 9. Bd2 {[%emt 0:00:04]} Bxd2+ {[%emt 0:00:07]} 10. Qxd2 {[%emt 0:00:10]} O-O {[%emt 0:00:09]} 11. Rc1 {[%emt 0:04:51]} b6 {[%emt 0:04:15]} 12. Bd3 {[%emt 0:00:08]} Ba6 {[%emt 0:08:32]} 13. O-O {[%emt 0:02:12]} Qd6 {[%emt 0:11:25]} 14. e5 {[%emt 0:04:44]} Qd7 {[%emt 0:04:16]} 15. Ng5 {[%emt 0:05:11]} h6 {[%emt 0:01:13]} 16. Nh7 {[%emt 0:04:27]} Qxd4 {[%emt 0:05:58]} 17. Nxf8 {[%emt 0:01:04]} Kxf8 {[%emt 0:00:11]} 18. Rfd1 {[%emt 0:01:22]} 1-0

[Event "NOR-chT Eliteserien 2018-19"]
[Site "Norway"]
[Date "2018.11.04"]
[Round "3"]
[White "Christiansen, Johan-Sebastian"]
[Black "Haug, Johannes"]
[Result "1/2-1/2"]
[ECO "B11"]
[WhiteElo "2544"]
[BlackElo "2386"]
[Annotator "broadcasts RC"]
[PlyCount "74"]
[EventDate "2018.11.02"]
[EventType "team-tourn"]
[EventCountry "NOR"]
[TimeControl "40/5400+30:1800+30"]

1. e4 {[%emt 0:00:00]} c6 {[%emt 0:01:29]} 2. Nf3 {[%emt 0:00:00]} d5 {[%emt 0:00:14]} 3. Nc3 {[%emt 0:00:00]} Bg4 {[%emt 0:00:51]} 4. h3 {[%emt 0:00:00]} Bxf3 {[%emt 0:00:06]} 5. Qxf3 {[%emt 0:00:00]} e6 {[%emt 0:00:16]} 6. d4 {[%emt 0:00:00]} dxe4 {[%emt 0:01:25]} 7. Qxe4 {[%emt 0:00:00]} Nf6 {[%emt 0:00:04]} 8. Qh4 {[%emt 0:00:02]} Nbd7 {[%emt 0:03:56]} 9. Bd3 {[%emt 0:00:21]} g6 {[%emt 0:08:15]} 10. O-O {[%emt 0:00:07]} Bg7 {[%emt 0:00:18]} 11. Bg5 {[%emt 0:00:02]} h6 {[%emt 0:02:32]} 12. Bd2 {[%emt 0:12:57]} Qc7 {[%emt 0:19:13]} 13. Ne4 {[%emt 0:20:52]} Nxe4 {[%emt 0:02:58]} 14. Qxe4 {[%emt 0:00:05]} O-O {[%emt 0:01:56]} 15. Qh4 {[%emt 0:13:33]} Qd8 {[%emt 0:06:13]} 16. Qg3 {[%emt 0:09:40]} c5 {[%emt 0:07:58]} 17. Qf3 {[%emt 0:09:55]} Qb6 {[%emt 0:10:44]} 18. dxc5 {[%emt 0:01:19]} Nxc5 {[%emt 0:00:04]} 19. Be3 {[%emt 0:00:10]} Qc7 {[%emt 0:00:32]} 20. Bxc5 {[%emt 0:03:48]} Qxc5 {[%emt 0:01:18]} 21. c3 {[%emt 0:00:09]} b6 {[%emt 0:02:17]} 22. a4 {[%emt 0:00:10]} Rad8 {[%emt 0:01:32]} 23. Rfd1 {[%emt 0:00:17]} Qc7 {[%emt 0:01:37]} 24. Bf1 {[%emt 0:03:42]} Rxd1 {[%emt 0:02:17]} 25. Rxd1 {[%emt 0:00:02]} Rd8 {[%emt 0:01:26]} 26. Rxd8+ {[%emt 0:03:09]} Qxd8 {[%emt 0:00:11]} 27. Qb7 {[%emt 0:00:07]} a5 {[%emt 0:01:12]} 28. g3 {[%emt 0:01:15]} Be5 {[%emt 0:01:59]} 29. Bc4 {[%emt 0:05:15]} Qc7 {[%emt 0:02:30]} 30. Qe4 {[%emt 0:00:34]} Kg7 {[%emt 0:00:09]} 31. h4 {[%emt 0:01:08]} h5 {[%emt 0:02:03]} 32. Kg2 {[%emt 0:01:00]} Bf6 {[%emt 0:01:42]} 33. Bb3 {[%emt 0:01:52]} Be5 {[%emt 0:02:44]} 34. Bd1 {[%emt 0:00:22]} Bf6 {[%emt 0:00:34]} 35. Bf3 {[%emt 0:00:09]} Be5 {[%emt 0:01:31]} 36. Qe2 {[%emt 0:00:58]} Bf6 {[%emt 0:00:44]} 37. Be4 {[%emt 0:00:32]} Qc5 {[%emt 0:01:55]} 1/2-1/2

[Event "NOR-chT Eliteserien 2018-19"]
[Site "Norway"]
[Date "2018.11.04"]
[Round "3"]
[White "Blomqvist, Erik"]
[Black "Howell, David W L"]
[Result "1/2-1/2"]
[ECO "B13"]
[WhiteElo "2491"]
[BlackElo "2697"]
[Annotator "broadcasts RC"]
[PlyCount "60"]
[EventDate "2018.11.02"]
[EventType "team-tourn"]
[EventCountry "NOR"]
[TimeControl "40/5400+30:1800+30"]

1. e4 {[%emt 0:00:00]} c6 {[%emt 0:02:45]} 2. d4 {[%emt 0:00:00]} d5 {[%emt 0:00:12]} 3. exd5 {[%emt 0:00:05]} cxd5 {[%emt 0:00:06]} 4. Bd3 {[%emt 0:00:35]} Nc6 {[%emt 0:00:25]} 5. c3 {[%emt 0:00:17]} Nf6 {[%emt 0:02:50]} 6. Bf4 {[%emt 0:00:37]} Bg4 {[%emt 0:01:06]} 7. Qb3 {[%emt 0:00:36]} Qd7 {[%emt 0:00:08]} 8. Nd2 {[%emt 0:00:35]} e6 {[%emt 0:00:06]} 9. Ngf3 {[%emt 0:00:25]} Bd6 {[%emt 0:00:07]} 10. Bxd6 {[%emt 0:02:30]} Qxd6 {[%emt 0:00:09]} 11. O-O {[%emt 0:03:28]} Rb8 {[%emt 0:09:57]} 12. a4 {[%emt 0:08:10]} O-O {[%emt 0:01:03]} 13. Rfe1 {[%emt 0:01:20]} Bxf3 {[%emt 0:21:06]} 14. Nxf3 {[%emt 0:00:12]} Qc7 {[%emt 0:00:18]} 15. Qc2 {[%emt 0:16:14]} Rfc8 {[%emt 0:11:57]} 16. Qe2 {[%emt 0:02:47]} a6 {[%emt 0:04:16]} 17. g3 {[%emt 0:03:11]} Re8 {[%emt 0:01:45]} 18. Ne5 {[%emt 0:08:34]} Nxe5 {[%emt 0:00:32]} 19. Qxe5 {[%emt 0:09:56]} Qxe5 {[%emt 0:04:36]} 20. Rxe5 {[%emt 0:01:41]} b5 {[%emt 0:09:44]} 21. axb5 {[%emt 0:13:30]} axb5 {[%emt 0:00:27]} 22. b4 {[%emt 0:01:38]} Rec8 {[%emt 0:02:44]} 23. Ra3 {[%emt 0:00:30]} Ne8 {[%emt 0:06:04]} 24. Re1 {[%emt 0:04:18]} Nd6 {[%emt 0:02:29]} 25. Kf1 {[%emt 0:03:52]} Rc7 {[%emt 0:08:51]} 26. Ke2 {[%emt 0:01:53]} Kf8 {[%emt 0:00:40]} 27. Kd2 {[%emt 0:00:52]} Rbc8 {[%emt 0:00:27]} 28. h4 {[%emt 0:02:30]} h5 {[%emt 0:01:58]} 29. Rea1 {[%emt 0:01:21]} Ke7 {[%emt 0:01:41]} 30. Ra7 {[%emt 0:01:01]} g6 {[%emt 0:01:41]} 1/2-1/2

[Event "NOR-chT Eliteserien 2018-19"]
[Site "Norway"]
[Date "2018.11.04"]
[Round "3"]
[White "Djurhuus, Rune"]
[Black "Tari, Aryan"]
[Result "0-1"]
[ECO "E52"]
[WhiteElo "2458"]
[BlackElo "2614"]
[Annotator "broadcasts RC"]
[PlyCount "70"]
[EventDate "2018.11.02"]
[EventType "team-tourn"]
[EventCountry "NOR"]
[TimeControl "40/5400+30:1800+30"]

1. d4 {[%emt 0:00:00]} d5 {[%emt 0:00:00]} 2. c4 {[%emt 0:01:53]} e6 {[%emt 0:00:08]} 3. Nc3 {[%emt 0:00:13]} Bb4 {[%emt 0:00:24]} 4. e3 {[%emt 0:01:27]} Nf6 {[%emt 0:00:30]} 5. Bd3 {[%emt 0:01:08]} O-O {[%emt 0:01:15]} 6. Nf3 {[%emt 0:00:39]} dxc4 {[%emt 0:01:28]} 7. Bxc4 {[%emt 0:00:08]} c5 {[%emt 0:00:12]} 8. O-O {[%emt 0:00:20]} b6 {[%emt 0:00:37]} 9. a3 {[%emt 0:00:41]} Bxc3 {[%emt 0:00:14]} 10. bxc3 {[%emt 0:00:08]} Bb7 {[%emt 0:02:06]} 11. Qe2 {[%emt 0:02:13]} Qc7 {[%emt 0:03:20]} 12. Bb2 {[%emt 0:01:26]} Nbd7 {[%emt 0:04:30]} 13. Nd2 {[%emt 0:00:42]} e5 {[%emt 0:17:41]} 14. f3 {[%emt 0:02:44]} Rad8 {[%emt 0:04:24]} 15. a4 {[%emt 0:03:25]} Rfe8 {[%emt 0:05:44]} 16. Bb5 {[%emt 0:04:17]} a6 {[%emt 0:07:31]} 17. Bxa6 {[%emt 0:04:41]} exd4 {[%emt 0:04:31]} 18. cxd4 {[%emt 0:02:44]} Bxa6 {[%emt 0:00:56]} 19. Qxa6 {[%emt 0:00:06]} Rxe3 {[%emt 0:00:09]} 20. Qc4 {[%emt 0:09:26]} Qd6 {[%emt 0:07:35]} 21. Ne4 {[%emt 0:29:17]} Nxe4 {[%emt 0:04:23]} 22. fxe4 {[%emt 0:00:04]} Qe6 {[%emt 0:00:25]} 23. Qxe6 fxe6 {[%emt 0:00:02]} 24. a5 {[%emt 0:07:14]} Rb3 {[%emt 0:06:29]} 25. Rf2 {[%emt 0:03:43]} bxa5 {[%emt 0:01:36]} 26. Rxa5 {[%emt 0:08:40]} Nf6 {[%emt 0:03:03]} 27. Ra7 {[%emt 0:02:33]} cxd4 {[%emt 0:08:42]} 28. e5 {[%emt 0:00:06]} Nh5 {[%emt 0:00:32]} 29. g4 {[%emt 0:05:01]} d3 {[%emt 0:01:33]} 30. Bc1 {[%emt 0:02:22]} Rb1 {[%emt 0:00:52]} 31. Rf1 {[%emt 0:02:00]} Rf8 {[%emt 0:00:49]} 32. Re1 {[%emt 0:04:01]} Nf4 {[%emt 0:00:24]} 33. Bd2 {[%emt 0:00:01]} Ne2+ {[%emt 0:00:45]} 34. Kg2 {[%emt 0:01:20]} Rb2 {[%emt 0:00:02]} 35. Be3 {[%emt 0:01:37]} Nc3+ {[%emt 0:01:43]} 0-1

[Event "NOR-chT Eliteserien 2018-19"]
[Site "Norway"]
[Date "2018.11.04"]
[Round "3"]
[White "Ostenstad, Berge"]
[Black "Urkedal, Frode Olav Olsen"]
[Result "1/2-1/2"]
[ECO "E15"]
[WhiteElo "2443"]
[BlackElo "2539"]
[Annotator "broadcasts RC"]
[PlyCount "118"]
[EventDate "2018.11.02"]
[EventType "team-tourn"]
[EventCountry "NOR"]
[TimeControl "40/5400+30:1800+30"]

1. d4 {[%emt 0:00:00]} Nf6 {[%emt 0:00:00]} 2. c4 {[%emt 0:00:00]} e6 {[%emt 0:00:00]} 3. Nf3 {[%emt 0:00:00]} b6 {[%emt 0:00:00]} 4. g3 {[%emt 0:00:08]} Ba6 {[%emt 0:00:05]} 5. b3 {[%emt 0:04:34]} Bb4+ {[%emt 0:00:06]} 6. Bd2 {[%emt 0:00:06]} Be7 {[%emt 0:00:06]} 7. Bg2 {[%emt 0:00:10]} d5 {[%emt 0:00:32]} 8. cxd5 {[%emt 0:01:05]} exd5 {[%emt 0:00:07]} 9. O-O {[%emt 0:00:47]} O-O {[%emt 0:00:08]} 10. Nc3 {[%emt 0:03:53]} Bb7 {[%emt 0:00:05]} 11. Rc1 {[%emt 0:05:54]} Nbd7 {[%emt 0:02:52]} 12. Bf4 {[%emt 0:05:10]} c6 {[%emt 0:00:07]} 13. Rc2 {[%emt 0:11:18]} Bb4 {[%emt 0:11:33]} 14. Ne1 {[%emt 0:07:04]} Re8 {[%emt 0:02:04]} 15. Nd3 {[%emt 0:01:35]} Bf8 {[%emt 0:01:21]} 16. b4 {[%emt 0:22:27]} Ne4 {[%emt 0:04:07]} 17. b5 {[%emt 0:04:22]} c5 {[%emt 0:02:35]} 18. Be3 {[%emt 0:03:26]} Rc8 {[%emt 0:22:25]} 19. Nxe4 {[%emt 0:03:07]} dxe4 {[%emt 0:00:07]} 20. Nb2 {[%emt 0:00:45]} cxd4 {[%emt 0:04:05]} 21. Bxd4 {[%emt 0:00:38]} Rxc2 {[%emt 0:01:11]} 22. Qxc2 {[%emt 0:00:07]} Nc5 {[%emt 0:08:37]} 23. Rd1 {[%emt 0:02:04]} Qc8 {[%emt 0:02:06]} 24. Be3 {[%emt 0:01:35]} Rd8 {[%emt 0:11:55]} 25. Rxd8 {[%emt 0:01:23]} Qxd8 {[%emt 0:00:05]} 26. a4 {[%emt 0:12:07]} Qd5 {[%emt 0:01:17]} 27. Bxc5 {[%emt 0:02:41]} Bxc5 {[%emt 0:00:50]} 28. Nc4 {[%emt 0:00:11]} h5 {[%emt 0:06:46]} 29. e3 {[%emt 0:00:27]} Bb4 {[%emt 0:00:58]} 30. h4 {[%emt 0:02:00]} g6 {[%emt 0:01:35]} 31. Qb3 {[%emt 0:01:06]} Qc5 {[%emt 0:02:37]} 32. Ne5 {[%emt 0:01:26]} Bd5 {[%emt 0:00:08]} 33. Qd1 {[%emt 0:00:16]} Bc3 {[%emt 0:01:59]} 34. Nc6 {[%emt 0:01:07]} Bxc6 {[%emt 0:01:34]} 35. bxc6 {[%emt 0:00:12]} Qxc6 {[%emt 0:00:11]} 36. Qc2 {[%emt 0:00:44]} f5 {[%emt 0:00:07]} 37. Bf1 {[%emt 0:00:13]} Kg7 {[%emt 0:01:14]} 38. Bb5 {[%emt 0:00:43]} Qc5 {[%emt 0:01:59]} 39. Qd1 {[%emt 0:00:07]} Qe7 {[%emt 0:03:31]} 40. Qd5 {[%emt 0:01:33]} Kh6 {[%emt 0:00:41]} 41. Kg2 {[%emt 0:31:40]} Qf6 {[%emt 0:35:33]} 42. Be8 {[%emt 0:00:00]} Bb4 {[%emt 0:07:27]} 43. Qg8 Qg7 44. Qe6 Bc3 45. Kf1 Qf6 46. Qg8 Qd6 47. Kg2 Bg7 48. Qf7 a6 49. Qc4 Qe7 50. Qc6 Qf6 51. Qc4 a5 52. Qc6 Qxc6 53. Bxc6 g5 54. hxg5+ Kxg5 55. Be8 Bf8 56. Kf1 Kg4 57. Kg2 Bd6 58. Bd7 Bc5 59. Bb5 h4 {[%emt 0:00:00]} 1/2-1/2

[Event "NOR-chT Eliteserien 2018-19"]
[Site "Norway"]
[Date "2018.11.04"]
[Round "3"]
[White "Nilsen, Joachim Birger"]
[Black "Hobber, Anders"]
[Result "0-1"]
[ECO "D15"]
[WhiteElo "2405"]
[BlackElo "2307"]
[Annotator "broadcasts RC"]
[PlyCount "75"]
[EventDate "2018.11.02"]
[EventType "team-tourn"]
[EventCountry "NOR"]
[TimeControl "40/5400+30:1800+30"]

1. d4 {[%emt 0:00:00]} d5 {[%emt 0:03:32]} 2. c4 {[%emt 0:00:00]} c6 {[%emt 0:00:06]} 3. Nf3 {[%emt 0:00:00]} Nf6 {[%emt 0:00:17]} 4. Nc3 {[%emt 0:00:44]} a6 {[%emt 0:00:38]} 5. c5 {[%emt 0:03:13]} Bf5 {[%emt 0:02:51]} 6. Qb3 {[%emt 0:03:56]} Qc8 {[%emt 0:00:26]} 7. Nh4 {[%emt 0:04:23]} Be6 {[%emt 0:04:52]} 8. g3 {[%emt 0:02:03]} g6 {[%emt 0:01:44]} 9. Nf3 {[%emt 0:01:57]} Bg7 {[%emt 0:01:46]} 10. Ng5 {[%emt 0:00:57]} Bf5 {[%emt 0:13:58]} 11. Bg2 {[%emt 0:04:51]} O-O {[%emt 0:14:38]} 12. h3 {[%emt 0:02:39]} h6 {[%emt 0:17:25]} 13. Nf3 {[%emt 0:06:27]} Nbd7 {[%emt 0:03:08]} 14. Qa3 {[%emt 0:07:38]} Re8 {[%emt 0:07:59]} 15. O-O {[%emt 0:17:03]} Nf8 {[%emt 0:12:15]} 16. Kh2 {[%emt 0:02:19]} N6d7 {[%emt 0:02:38]} 17. Na4 {[%emt 0:13:15]} Be4 {[%emt 0:00:47]} 18. Be3 {[%emt 0:01:03]} Ne6 {[%emt 0:02:52]} 19. Rad1 {[%emt 0:01:24]} Qc7 {[%emt 0:00:58]} 20. Nc3 {[%emt 0:04:51]} Bxf3 {[%emt 0:02:39]} 21. exf3 {[%emt 0:04:20]} Ndxc5 {[%emt 0:01:27]} 22. dxc5 {[%emt 0:06:14]} d4 {[%emt 0:00:02]} 23. Bxh6 {[%emt 0:01:20]} Bxh6 {[%emt 0:00:24]} 24. Ne4 {[%emt 0:00:12]} Rad8 {[%emt 0:01:28]} 25. f4 {[%emt 0:00:13]} Rd5 {[%emt 0:01:35]} 26. Rfe1 {[%emt 0:01:37]} Red8 {[%emt 0:01:13]} 27. h4 {[%emt 0:03:20]} Rh5 {[%emt 0:00:38]} 28. Kg1 {[%emt 0:01:19]} Rhd5 {[%emt 0:01:06]} 29. Ng5 {[%emt 0:03:00]} Bxg5 {[%emt 0:00:28]} 30. hxg5 {[%emt 0:00:58]} Nxc5 {[%emt 0:00:26]} 31. Bxd5 {[%emt 0:00:06]} Rxd5 {[%emt 0:00:03]} 32. b4 {[%emt 0:01:08]} Ne6 {[%emt 0:00:09]} 33. Qd3 {[%emt 0:00:04]} Qd6 {[%emt 0:00:23]} 34. a3 {[%emt 0:01:43]} Kg7 {[%emt 0:00:18]} 35. Rd2 {[%emt 0:01:38]} c5 {[%emt 0:00:29]} 36. Rde2 {[%emt 0:00:38]} b5 {[%emt 0:01:13]} 37. bxc5 {[%emt 0:01:12]} Rxc5 {[%emt 0:00:15]} 38. Rd2 {[%emt 0:00:00] time} 0-1

[Event "NOR-chT Eliteserien 2018-19"]
[Site "Norway"]
[Date "2018.11.04"]
[Round "3"]
[White "Kaasen, Tor Fredrik"]
[Black "Nordquelle, Daniel"]
[Result "0-1"]
[ECO "E04"]
[WhiteElo "2396"]
[BlackElo "2213"]
[Annotator "broadcasts"]
[PlyCount "76"]
[EventDate "2018.11.02"]
[EventType "team-tourn"]
[EventCountry "NOR"]
[TimeControl "40/5400+30:1800+30"]

1. d4 {[%emt 0:00:00]} d5 {[%emt 0:00:00]} 2. c4 {[%emt 0:00:00]} e6 {[%emt 0:00:00]} 3. Nf3 {[%emt 0:00:00]} Nf6 {[%emt 0:00:04]} 4. g3 {[%emt 0:00:05]} Bb4+ {[%emt 0:00:08]} 5. Nbd2 {[%emt 0:00:17]} dxc4 {[%emt 0:00:06]} 6. Bg2 {[%emt 0:00:47]} b5 {[%emt 0:00:10]} 7. O-O {[%emt 0:00:44]} O-O {[%emt 0:00:44]} 8. a4 {[%emt 0:02:08]} c6 {[%emt 0:00:08]} 9. Qc2 {[%emt 0:01:03]} a5 {[%emt 0:00:35]} 10. b3 {[%emt 0:01:40]} c3 {[%emt 0:08:36]} 11. Nb1 {[%emt 0:00:35]} bxa4 {[%emt 0:00:05]} 12. bxa4 {[%emt 0:01:28]} Ba6 {[%emt 0:00:16]} 13. Re1 {[%emt 0:00:42]} Nbd7 {[%emt 0:01:49]} 14. Nxc3 {[%emt 0:05:26]} c5 {[%emt 0:04:38]} 15. dxc5 {[%emt 0:11:40]} Rc8 {[%emt 0:03:12]} 16. Be3 {[%emt 0:00:46]} Nxc5 {[%emt 0:01:14]} 17. Red1 {[%emt 0:16:48]} Qe8 {[%emt 0:06:14]} 18. Nb5 {[%emt 0:21:13]} Nxa4 {[%emt 0:24:57]} 19. Qxa4 {[%emt 0:04:04]} Bxb5 {[%emt 0:02:04]} 20. Qa2 {[%emt 0:00:06]} Nd5 {[%emt 0:20:27]} 21. Bd4 {[%emt 0:07:22]} Nc3 {[%emt 0:02:24]} 22. Bxc3 {[%emt 0:00:28]} Bxc3 {[%emt 0:00:04]} 23. Rac1 {[%emt 0:01:01]} Bc4 {[%emt 0:00:26]} 24. Qc2 {[%emt 0:00:40]} Bf6 {[%emt 0:00:04]} 25. Nd4 {[%emt 0:04:54]} a4 {[%emt 0:05:08]} 26. Bc6 {[%emt 0:00:31]} Rxc6 {[%emt 0:00:05]} 27. Nxc6 {[%emt 0:00:06]} Bb3 {[%emt 0:00:04]} 28. Qc5 {[%emt 0:01:13]} Bxd1 {[%emt 0:00:11]} 29. Rxd1 {[%emt 0:00:12]} a3 {[%emt 0:00:08]} 30. Rd2 {[%emt 0:06:48]} Bb2 {[%emt 0:04:06]} 31. Qb6 {[%emt 0:03:35]} Qa8 {[%emt 0:03:40]} 32. Na7 {[%emt 0:00:16]} Rb8 {[%emt 0:00:39]} 33. Qa6 {[%emt 0:01:58]} Bd4 {[%emt 0:00:26]} 34. Qd3 {[%emt 0:02:52]} Bxa7 {[%emt 0:00:48]} 35. Ra2 {[%emt 0:00:34]} Bc5 {[%emt 0:00:18]} 36. Qc2 {[%emt 0:00:22]} Bf8 {[%emt 0:00:41]} 37. e4 {[%emt 0:00:22]} Qb7 {[%emt 0:00:15]} 38. h4 {[%emt 0:00:44]} Qb1+ {[%emt 0:00:08]} 0-1

[Event "NOR-chT Eliteserien 2018-19"]
[Site "Norway"]
[Date "2018.11.04"]
[Round "3"]
[White "Vestby-Ellingsen, Mads"]
[Black "Hauge, Lars Oskar"]
[Result "0-1"]
[ECO "A37"]
[WhiteElo "2385"]
[BlackElo "2449"]
[Annotator "broadcasts RC"]
[PlyCount "90"]
[EventDate "2018.11.02"]
[EventType "team-tourn"]
[EventCountry "NOR"]
[TimeControl "40/5400+30:1800+30"]

1. c4 {[%emt 0:00:00]} c5 {[%emt 0:00:40]} 2. Nc3 {[%emt 0:00:18]} Nc6 {[%emt 0:00:53]} 3. Nf3 {[%emt 0:03:13]} g6 {[%emt 0:01:02]} 4. g3 {[%emt 0:00:36]} Bg7 {[%emt 0:00:05]} 5. Bg2 {[%emt 0:00:15]} d6 {[%emt 0:00:03]} 6. O-O {[%emt 0:02:14]} Bf5 {[%emt 0:00:40]} 7. d3 {[%emt 0:04:02]} Qd7 {[%emt 0:00:28]} 8. a3 {[%emt 0:21:16]} Nf6 {[%emt 0:00:23]} 9. Rb1 {[%emt 0:01:20]} Bh3 {[%emt 0:03:27]} 10. b4 {[%emt 0:02:27]} Bxg2 {[%emt 0:06:17]} 11. Kxg2 {[%emt 0:00:10]} O-O {[%emt 0:00:31]} 12. Bd2 {[%emt 0:10:15]} e6 {[%emt 0:03:31]} 13. Qb3 {[%emt 0:10:52]} b6 {[%emt 0:00:18]} 14. e3 {[%emt 0:01:44]} h5 {[%emt 0:05:33]} 15. h4 {[%emt 0:02:35]} Rfd8 {[%emt 0:02:44]} 16. Rfc1 {[%emt 0:03:24]} Qb7 {[%emt 0:08:14]} 17. e4 {[%emt 0:05:35]} Ng4 {[%emt 0:04:37]} 18. Ne2 {[%emt 0:02:36]} Nge5 {[%emt 0:03:23]} 19. Ng5 {[%emt 0:03:33]} d5 {[%emt 0:06:03]} 20. cxd5 {[%emt 0:02:46]} exd5 {[%emt 0:01:56]} 21. exd5 {[%emt 0:03:51]} Ne7 {[%emt 0:00:10]} 22. bxc5 {[%emt 0:02:24]} Rxd5 {[%emt 0:00:41]} 23. c6 {[%emt 0:00:56]} N5xc6 {[%emt 0:00:12]} 24. Kg1 {[%emt 0:01:06]} Rad8 {[%emt 0:00:14]} 25. Bc3 {[%emt 0:04:51]} Qd7 {[%emt 0:13:12]} 26. Bxg7 {[%emt 0:01:09]} Kxg7 {[%emt 0:00:02]} 27. Qc3+ {[%emt 0:00:36]} f6 {[%emt 0:02:46]} 28. Ne4 {[%emt 0:02:08]} Rf5 {[%emt 0:01:54]} 29. Rd1 {[%emt 0:03:08]} Ne5 {[%emt 0:04:50]} 30. d4 {[%emt 0:01:04]} Nf3+ {[%emt 0:00:04]} 31. Kg2 {[%emt 0:00:17]} Qb7 {[%emt 0:00:10]} 32. Qe3 {[%emt 0:01:30]} Nd5 {[%emt 0:05:33]} 33. Qd3 {[%emt 0:00:03]} Re8 {[%emt 0:00:03]} 34. Kf1 {[%emt 0:02:26]} Qd7 {[%emt 0:10:49]} 35. Kg2 {[%emt 0:01:12]} Qe6 {[%emt 0:00:06]} 36. N4c3 {[%emt 0:00:43]} Qc6 {[%emt 0:03:40]} 37. Kh3 {[%emt 0:01:13]} Ng5+ {[%emt 0:01:54]} 38. hxg5 {[%emt 0:00:10]} Rxf2 {[%emt 0:00:05]} 39. gxf6+ {[%emt 0:00:57]} Nxf6 {[%emt 0:00:21]} 40. Rg1 {[%emt 0:00:00]} Qe6+ {[%emt 0:00:00]} 41. g4 {[%emt 0:03:46]} hxg4+ {[%emt 0:01:28]} 42. Kg3 {[%emt 0:00:47]} Rf3+ {[%emt 0:00:09]} 43. Qxf3 {[%emt 0:00:08]} gxf3 {[%emt 0:00:03]} 44. Kxf3 {[%emt 0:01:03]} Qe3+ {[%emt 0:00:10]} 45. Kg2 {[%emt 0:00:12]} Ne4 {[%emt 0:00:07]} 0-1

[Event "NOR-chT Eliteserien 2018-19"]
[Site "Norway"]
[Date "2018.11.04"]
[Round "3"]
[White "Tryggestad, Andreas Garberg"]
[Black "Holm, Kristian Stuvik"]
[Result "1/2-1/2"]
[ECO "E04"]
[WhiteElo "2343"]
[BlackElo "2467"]
[Annotator "broadcasts RC"]
[PlyCount "89"]
[EventDate "2018.11.02"]
[EventType "team-tourn"]
[EventCountry "NOR"]
[TimeControl "40/5400+30:1800+30"]

1. d4 {[%emt 0:12:58]} Nf6 {[%emt 0:00:23]} 2. c4 {[%emt 0:00:03]} e6 {[%emt 0:00:07]} 3. Nf3 {[%emt 0:00:04]} d5 {[%emt 0:00:05]} 4. Nc3 {[%emt 0:00:03]} c6 {[%emt 0:00:08]} 5. g3 {[%emt 0:00:03]} dxc4 {[%emt 0:00:12]} 6. Bg2 {[%emt 0:00:04]} b5 {[%emt 0:00:05]} 7. Ne5 {[%emt 0:00:03]} a6 {[%emt 0:00:03]} 8. O-O {[%emt 0:00:05]} Bb7 {[%emt 0:00:24]} 9. e4 {[%emt 0:03:38]} Be7 {[%emt 0:02:15]} 10. b3 {[%emt 0:02:00]} cxb3 {[%emt 0:10:18]} 11. axb3 {[%emt 0:01:50]} O-O {[%emt 0:01:17]} 12. Be3 {[%emt 0:00:45]} Nbd7 {[%emt 0:02:13]} 13. Nd3 {[%emt 0:01:15]} a5 {[%emt 0:02:42]} 14. g4 {[%emt 0:03:18]} b4 {[%emt 0:05:09]} 15. Na4 {[%emt 0:02:25]} Ba6 {[%emt 0:00:10]} 16. g5 {[%emt 0:00:32]} Ne8 {[%emt 0:00:28]} 17. f4 {[%emt 0:01:26]} Nc7 {[%emt 0:11:32]} 18. Rf3 {[%emt 0:06:51]} c5 {[%emt 0:06:33]} 19. Rh3 {[%emt 0:00:53]} Bxd3 {[%emt 0:01:45]} 20. Qxd3 {[%emt 0:01:55]} cxd4 {[%emt 0:04:21]} 21. Bxd4 {[%emt 0:01:34]} e5 {[%emt 0:00:35]} 22. Bb2 {[%emt 0:02:32]} Ne6 {[%emt 0:04:17]} 23. Rd1 {[%emt 0:02:36]} Ra7 {[%emt 0:03:56]} 24. Rxh7 {[%emt 0:22:49]} Kxh7 {[%emt 0:09:42]} 25. Qh3+ {[%emt 0:00:11]} Kg8 {[%emt 0:00:11]} 26. g6 {[%emt 0:00:08]} Bh4 {[%emt 0:02:06]} 27. gxf7+ {[%emt 0:02:19]} Kxf7 {[%emt 0:00:58]} 28. Bxe5 {[%emt 0:05:11]} Bf6 {[%emt 0:11:05]} 29. Bd6 {[%emt 0:02:16]} Rh8 {[%emt 0:02:52]} 30. Qe3 {[%emt 0:00:51]} Ra6 {[%emt 0:04:53]} 31. e5 {[%emt 0:01:12]} Nxe5 {[%emt 0:07:36]} 32. fxe5 {[%emt 0:00:06]} Rxd6 {[%emt 0:00:17]} 33. exd6 {[%emt 0:08:12]} Rh4 {[%emt 0:00:12]} 34. Nc5 {[%emt 0:03:51]} Nxc5 {[%emt 0:03:52]} 35. Qxc5 {[%emt 0:00:02]} Kg6 {[%emt 0:04:05]} 36. d7 {[%emt 0:01:27]} a4 {[%emt 0:00:37]} 37. Qc2+ {[%emt 0:07:28]} Kh6 {[%emt 0:00:04]} 38. Qd2+ {[%emt 0:00:29]} Bg5 {[%emt 0:00:54]} 39. Qd6+ {[%emt 0:00:06]} Bf6 {[%emt 0:00:17]} 40. bxa4 {[%emt 0:05:17]} b3 {[%emt 0:00:02]} 41. Qd2+ {[%emt 0:12:09]} Bg5 {[%emt 0:00:26]} 42. Qd6+ {[%emt 0:06:25]} Bf6 {[%emt 0:00:02]} 43. Qd2+ {[%emt 0:00:15]} Bg5 {[%emt 0:00:03]} 44. Qd6+ {[%emt 0:03:33]} Bf6 {[%emt 0:00:03]} 45. Qd2+ {[%emt 0:00:04]} 1/2-1/2